bitfinex-derivatives/quotes_ETHF0:USTF0_20250824
["timestamp","ask_amount","ask_price","bid_price","bid_amount"]
[1756057894544,0.40767,4907.1,4906.9,0.40768]
[1756057894743,0.40768,4907.0,4905.4,23.472]
[1756057894937,0.40768,4907.0,4905.5,0.24630399]
[1756057895141,0.40768,4907.0,4906.7,0.40769]
[1756057895336,0.40768,4907.0,4906.9,2.2361]
[1756057895549,0.4077,4906.7,4906.4,0.40772]
[1756057895745,0.4077,4906.7,4906.5,2.2361]
[1756057895951,0.40768,4906.9,4906.5,1.85391]
[1756057896148,0.40768,4906.9,4906.5,0.40771]
[1756057896349,0.5852,4906.9,4905.0,1.4105]
[1756057896548,1.0781,4906.7,4905.3,0.7899]
[1756057896747,0.40774,4906.2,4905.8,0.40777]
[1756057896950,0.40774,4906.2,4905.9,0.5854]
[1756057897141,0.40774,4906.2,4906.0,1.3238]
[1756057897345,0.40774,4906.2,4906.1,0.8376]
[1756057897745,0.40774,4906.2,4905.8,0.40777]
[1756057897746,1.2556,4905.9,4904.4,0.8376]
[1756057897944,1.2556,4905.9,4904.3,0.5854]
[1756057897945,0.5963,4905.0,4904.5,0.8376]
[1756057898248,0.40785,4904.9,4904.1,0.40791]
[1756057898551,0.40784,4905.0,4904.2,1.7317]
[1756057898850,1.8316,4905.8,4904.4,1.3238]
[1756057899042,1.8316,4905.8,4904.5,0.8376]
[1756057899242,0.40787,4904.7,4904.6,2.1614]
[1756057900255,1.3445,4905.8,4904.9,1.576]
[1756057900455,0.40785,4905.0,4904.9,2.1614]
[1756057900753,0.40781,4905.4,4904.9,2.1614]
[1756057900956,0.40781,4905.4,4905.0,2.1614]
[1756057901149,0.40781,4905.4,4904.9,0.40784]
[1756057901346,1.8316,4906.3,4904.7,1.3238]
[1756057901653,0.40785,4905.0,4904.8,0.8376]
[1756057901850,0.40789,4904.4,4904.2,2.1614]
[1756057902050,0.40784,4905.0,4904.5,1.73168]
[1756057902251,0.40786,4904.8,4904.5,0.40788]
[1756057902449,0.40784,4905.0,4904.7,2.1614]
[1756057902645,1.3445,4905.5,4904.3,0.40789]
[1756057902854,1.3445,4905.5,4904.8,2.1614]
[1756057903151,0.40779,4905.7,4905.3,0.40781]
[1756057903352,1.0193,4906.5,4905.5,1.3238]
[1756057903553,1.01932,4906.4,4905.3,0.40781]
[1756057903752,0.40778,4905.8,4905.4,0.4078]
[1756057903952,0.40778,4905.8,4905.7,2.1614]
[1756057904452,0.5963,4905.4,4904.8,1.423]
[1756057904656,0.5963,4905.4,4903.6,1.01988]
[1756057904657,0.40785,4905.0,4904.6,0.40787]
[1756057904858,1.50657,4905.7,4903.9,1.42358819]
[1756057904859,0.40783,4905.2,4904.8,0.40786]
[1756057905050,0.40783,4905.2,4904.9,2.1614]
[1756057905249,0.40783,4905.2,4905.1,2.1614]
[1756057905848,2.3639,4906.0,4905.1,2.1614]
[1756057905849,1.3445,4906.0,4905.1,2.56923]
[1756057906050,0.40781,4905.4,4904.4,1.423]
[1756057906253,1.3445,4906.0,4904.9,0.40784]
[1756057906449,1.50654,4905.8,4905.1,0.7384]
[1756057906651,0.40782,4905.2,4905.0,0.8376]
[1756057906855,0.5963,4905.1,4905.0,0.8376]
[1756057907553,0.4078,4905.5,4905.2,0.8376]
[1756057907757,0.40781,4905.4,4905.3,1.3238]
[1756057908151,0.40781,4905.4,4905.3,2.1614]
[1756057908748,1.00411,4905.4,4905.3,1.576]
[1756057909058,0.40783,4905.1,4904.1,1.01979]
[1756057909257,0.40783,4905.1,4905.0,2.1614]
[1756057910453,0.40783,4905.1,4905.0,1.576]
[1756057911457,1.75233,4905.1,4905.0,0.8376]
[1756057911659,1.00413,4905.1,4905.0,0.8376]
[1756057911856,0.40783,4905.1,4905.0,2.1614]
[1756057915267,0.40783,4905.1,4904.7,1.576]
[1756057915458,0.40783,4905.1,4904.8,2.1614]
[1756057915657,0.40783,4905.1,4905.0,1.3238]
[1756057915862,0.40783,4905.1,4905.0,2.1614]
[1756057916164,0.40781,4905.3,4905.1,0.40783]
[1756057916364,0.40781,4905.3,4905.2,2.1614]
[1756057917661,0.4078,4905.5,4905.3,0.40781]
[1756057917861,0.5963,4905.8,4905.2,2.56922]
[1756057918462,0.5963,4905.8,4905.3,0.40781]
[1756057918765,0.4078,4905.5,4905.3,0.40781]
[1756057919155,0.4078,4905.5,4905.4,2.1614]
[1756057919768,1.7523,4905.5,4905.4,2.1614]
[1756057919969,0.4078,4905.5,4905.4,2.1614]
[1756057920769,1.0834,4905.2,4904.3,0.99329]
[1756057920958,0.40788,4904.5,4904.4,2.1614]
[1756057921771,1.64318,4904.5,4904.4,0.5854]
[1756057922166,0.89498,4904.5,4904.4,1.3238]
[1756057922367,0.40788,4904.5,4904.4,2.1614]
[1756057922762,0.40788,4904.5,4903.9,2.1614]
[1756057922763,0.40792,4904.0,4903.9,2.1614]
[1756057922961,0.89502,4904.0,4903.9,1.576]
[1756057923265,2.23952,4904.0,4903.9,0.8376]
[1756057923575,0.40796,4903.5,4903.4,1.3238]
[1756057923874,0.40796,4903.5,4902.9,2.84658819]
[1756057923875,0.40801,4903.0,4902.9,2.84658819]
[1756057924073,0.40801,4903.0,4902.9,2.1614]
[1756057925571,1.00431,4903.0,4902.9,2.1614]
[1756057926372,0.40801,4903.0,4902.9,2.1614]
[1756057927668,0.5963,4903.5,4902.9,2.1614]
[1756057927873,0.40801,4903.0,4902.5,0.40804]
[1756057928064,0.40801,4903.0,4902.8,1.5559]
[1756057928269,0.40801,4903.0,4902.9,2.1436]
[1756057931374,0.5746,4905.5,4904.1,0.0203]
[1756057931573,0.5746,4905.5,4904.5,1.3732]
[1756057931773,0.40785,4905.0,4904.7,2.55146]
[1756057931975,0.40776,4906.0,4905.5,0.40779]
[1756057932176,1.01919,4907.0,4904.6,2.64359394]
[1756057932177,1.01916,4907.2,4905.3,2.1436]
[1756057932378,0.40781,4905.4,4904.8,0.40786]
[1756057932674,0.40779,4905.7,4905.1,1.3581]
[1756057932870,0.40779,4905.7,4905.2,0.7855]
[1756057932871,0.40781,4905.4,4905.2,0.7855]
[1756057933281,1.3371,4905.8,4904.1,1.3732]
[1756057933481,0.40784,4905.0,4903.9,0.0203]
[1756057933679,0.4581,4905.9,4904.4,0.0203]
[1756057933881,0.40773,4906.4,4905.9,0.40776]
[1756057934183,0.40773,4906.4,4906.3,1.5559]
[1756057934372,0.40773,4906.4,4906.3,2.1436]
[1756057934576,0.5746,4906.8,4906.3,2.1436]
[1756057934777,0.5746,4906.7,4906.5,1.5559]
[1756057934974,0.40771,4906.6,4906.5,0.5877]
[1756057935182,0.40773,4906.3,4906.2,1.3581]
[1756057935485,0.40773,4906.3,4906.2,2.1436]
[1756057936183,0.40773,4906.3,4905.7,0.7855]
[1756057936184,5.3371,4906.3,4905.7,0.7855]
[1756057936383,1.3371,4906.3,4905.7,0.7855]
[1756057936580,1.74487,4905.8,4905.7,0.7855]
[1756057936878,0.40777,4905.8,4905.7,2.1436]
[1756057938073,0.40775,4906.1,4906.0,0.5877]
[1756057938277,2.20295,4906.1,4906.0,0.7855]
[1756057938476,0.40777,4905.8,4905.4,2.1436]
[1756057938681,0.5746,4906.6,4905.6,0.40779]
[1756057938877,0.40775,4906.2,4905.9,1.3732]
[1756057939081,0.40776,4906.0,4905.9,1.3732]
[1756057939282,0.40776,4906.0,4905.9,2.1436]
[1756057939778,0.7625,4906.7,4905.9,2.1436]
[1756057939975,0.7625,4906.7,4906.0,0.7855]
[1756057940579,0.40775,4906.1,4906.0,0.7855]
[1756057940778,0.40775,4906.1,4906.0,2.1436]
[1756057941377,0.98235,4906.1,4906.0,2.1436]
[1756057941580,1.74485,4906.1,4906.0,1.5559]
[1756057941981,2.20295,4906.1,4906.0,1.5559]
[1756057942182,2.20295,4906.1,4906.0,0.7855]
[1756057942488,0.40778,4905.7,4905.6,2.1436]
[1756057943387,0.98238,4905.7,4905.6,2.1436]
[1756057943787,0.40782,4905.3,4905.1,0.7704]
[1756057943987,0.98242,4905.3,4905.2,2.1436]
[1756057944286,0.40779,4905.6,4905.4,0.7704]
[1756057944496,1.01932,4906.4,4904.7,1.01966]
[1756057944787,1.01932,4906.4,4904.9,2.1436]
[1756057944983,0.40779,4905.7,4905.4,0.4078]
[1756057945183,0.40779,4905.7,4905.5,2.1436]
[1756057945490,0.40777,4905.9,4905.6,0.40778]
[1756057945681,0.40777,4905.9,4905.7,2.1436]
[1756057945877,0.40777,4905.9,4905.8,2.1436]
[1756057946378,0.40773,4906.3,4906.1,0.7855]
[1756057946584,1.01921,4906.9,4906.2,2.1436]
[1756057946784,0.40773,4906.3,4906.2,2.1436]
[1756057948791,0.40773,4906.4,4906.2,0.40774]
[1756057949090,0.40773,4906.4,4906.3,2.1436]
[1756057949587,0.98233,4906.4,4906.3,2.1436]
[1756057949983,0.40778,4905.8,4905.7,1.3732]
[1756057950792,0.40778,4905.8,4905.7,2.1436]
[1756057950988,0.98238,4905.8,4905.7,2.1436]
[1756057952193,2.18018,4905.8,4905.7,0.5877]
[1756057952693,0.40778,4905.8,4905.7,2.1436]
[1756057954486,1.78187,4906.2,4905.2,1.5559]
[1756057954487,0.40781,4905.3,4905.2,1.5559]
[1756057954688,0.40781,4905.3,4905.2,2.1436]
[1756057957590,0.96111,4905.3,4905.2,2.1436]
[1756057957792,0.40781,4905.3,4905.2,2.1436]
[1756057959992,1.01938,4906.1,4905.2,2.1671]
[1756057960192,0.4078,4905.5,4905.4,0.7953]
[1756057960389,0.40791,4904.1,4904.0,0.7953]
[1756057960787,0.40791,4904.1,4904.0,2.1671]
[1756057960992,0.40792,4904.1,4903.7,0.0203]
[1756057961195,0.40793,4904.0,4903.8,1.42358819]
[1756057961599,0.40793,4904.0,4903.9,2.1671]
[1756057963903,0.40793,4904.0,4903.9,3.6117]
[1756057966495,0.89623,4904.0,4903.9,3.6117]
[1756057966696,1.44953,4904.0,4903.9,3.6117]
[1756057967199,2.37763,4904.0,4903.9,3.6117]
[1756057967504,7.94603,4904.0,4903.9,0.9271]
[1756057967705,3.94606,4903.6,4903.5,0.5205]
[1756057967908,0.40806,4902.4,4902.3,1.42358819]
[1756057968094,0.40806,4902.4,4902.2,1.42358819]
[1756057968095,2.56356,4902.4,4902.2,1.42358819]
[1756057968298,0.40807,4902.2,4902.1,1.42358819]
[1756057969509,0.40811,4901.7,4901.6,0.7844]
[1756057969908,0.40811,4901.7,4901.6,2.1875]
[1756057970108,2.1555,4903.6,4902.3,1.3718]
[1756057970307,2.1555,4903.6,4902.1,0.42838]
[1756057970308,0.40804,4902.6,4902.1,0.42838]
[1756057970500,0.40804,4902.6,4902.5,2.1671]
[1756057970704,1.97644,4902.6,4902.5,2.1671]
[1756057970906,0.40804,4902.6,4902.5,2.1671]
[1756057971400,1.3743,4902.5,4902.2,1.3718]
[1756057971710,0.20132147,4902.6,4902.3,2.1671]
[1756057971908,0.40805,4902.5,4902.3,2.1671]
[1756057972105,0.40804,4902.6,4902.2,0.40807]
[1756057972305,0.40804,4902.6,4902.5,2.1671]
[1756057972704,1.22502619,4903.3,4902.6,2.1671]
[1756057972910,1.01998,4903.2,4902.7,0.6078]
[1756057973207,1.01998,4903.2,4902.0,0.0203]
[1756057973208,2.1555,4903.2,4902.0,0.40808]
[1756057973409,0.40806,4902.4,4902.1,0.40808]
[1756057973909,0.40808,4902.1,4902.0,2.1671]
[1756057974310,2.56358,4902.1,4902.0,2.1671]
[1756057975111,0.40813,4901.6,4901.3,2.1671]
[1756057975310,0.40813,4901.6,4901.3,0.40814]
[1756057975620,0.40811,4901.8,4901.4,0.40813]
[1756057975814,0.40813,4901.5,4901.4,0.7953]
[1756057976016,2.56363,4901.5,4901.4,1.4031]
[1756057976422,2.1555,4901.0,4900.4,2.21888819]
[1756057976723,2.1555,4901.0,4900.4,0.7953]
[1756057976917,0.40821,4900.6,4900.4,2.21888819]
[1756057977116,2.1555,4900.5,4900.4,2.82668819]
[1756057977321,0.40822,4900.4,4900.3,1.42358819]
[1756057977521,2.56372,4900.4,4900.3,1.4031]
[1756057977815,0.40822,4900.4,4900.3,2.1671]
[1756057978016,1.77652,4900.4,4900.3,1.4031]
[1756057978224,1.97666,4900.0,4899.9,1.4031]
[1756057978516,1.97666,4900.0,4899.9,2.1671]
[1756057978721,0.4083,4899.5,4899.4,2.1671]
[1756057980027,1.1895,4899.5,4899.4,2.1671]
[1756057980210,1.9767,4899.5,4899.4,2.1671]
[1756057980416,0.0204,4900.5,4899.4,2.1671]
[1756057980417,0.40826,4899.9,4899.5,1.5593]
[1756057980612,0.7812,4900.1,4899.0,2.1671]
[1756057980911,0.7812,4899.9,4899.3,1.4031]
[1756057981214,0.40829,4899.6,4899.4,2.1671]
[1756057981415,1.1895,4899.5,4899.4,1.5593]
[1756057981614,1.1895,4899.5,4898.8,0.40835]
[1756057981615,0.5871,4899.5,4898.9,0.7953]
[1756057981812,0.7812,4899.7,4899.1,1.4031]
[1756057982111,1.97671,4899.4,4899.3,2.1671]
[1756057982310,1.3683,4899.9,4898.9,0.6078]
[1756057982515,1.3683,4899.9,4899.0,0.40834]
[1756057982716,0.40831,4899.4,4899.0,0.40834]
[1756057982911,0.7872,4899.7,4899.1,0.40833]
[1756057983110,0.4083,4899.5,4899.1,0.40833]
[1756057983517,0.4083,4899.5,4899.3,2.1671]
[1756057983712,0.4083,4899.5,4899.4,2.1671]
[1756057984115,0.4083,4899.5,4898.8,22.635]
[1756057984116,1.3683,4899.9,4898.8,22.635]
[1756057984316,1.97667,4899.9,4898.9,2.1671]
[1756057984523,0.7812,4900.4,4899.5,0.40829]
[1756057984721,0.40825,4900.1,4900.0,2.1671]
[1756057985119,1.97665,4900.1,4900.0,2.1671]
[1756057985426,1.5684,4900.1,4900.0,2.1671]
[1756057985726,0.40823,4900.3,4899.0,2.58014]
[1756057985920,1.3683,4900.4,4899.2,1.5593]
[1756057986225,0.7872,4900.8,4900.4,0.40822]
[1756057986418,0.40821,4900.6,4899.8,2.1671]
[1756057986618,0.40823,4900.4,4899.9,0.40826]
[1756057986819,0.40823,4900.4,4900.1,2.0454]
[1756057987015,0.40823,4900.4,4900.0,0.40825]
[1756057987325,0.40823,4900.4,4900.3,2.0454]
[1756057987628,2.48913,4900.4,4900.3,2.0454]
[1756057987924,0.40822,4900.4,4900.0,2.45365]
[1756057988126,0.7339,4900.5,4900.2,0.40823]
[1756057988320,0.40823,4900.4,4900.0,0.40825]
[1756057988728,0.40824,4900.2,4900.1,2.0454]
[1756057989222,0.40826,4900.0,4899.6,0.40828]
[1756057989423,0.40825,4900.1,4899.7,0.40827]
[1756057989724,0.40829,4899.6,4899.4,0.7318]
[1756057989931,2.48919,4899.6,4899.5,2.0454]
[1756057990224,1.02043,4901.1,4899.0,0.40834]
[1756057990225,0.40825,4900.1,4899.8,0.5856]
[1756057990528,1.94175,4900.1,4899.7,0.40828]
[1756057990727,0.40825,4900.1,4900.0,2.0454]
[1756057990917,0.40822,4900.5,4900.2,2.0454]
[1756057991121,0.40823,4900.4,4900.2,2.0454]
[1756057991322,1.5335,4900.9,4900.3,2.0454]
[1756057991520,1.02041,4901.2,4899.9,2.0454]
[1756057991730,1.02041,4901.2,4900.0,0.40825]
[1756057991923,2.0809,4901.0,4900.1,0.5856]
[1756057992131,1.94174,4900.3,4900.2,2.0454]
[1756057992320,2.0809,4900.3,4900.2,2.0454]
[1756057992518,0.4082,4900.7,4900.4,0.7318]
[1756057992824,0.7339,4901.0,4900.8,1.3174]
[1756057993023,0.7339,4901.0,4900.9,2.0454]
[1756057993229,1.5335,4901.0,4900.9,2.0454]
[1756057993523,2.0809,4901.0,4900.5,0.5856]
[1756057993729,0.0204,4901.7,4900.5,0.5856]
[1756057993730,2.0809,4900.6,4900.5,0.5856]
[1756057993934,2.0809,4900.6,4900.5,2.0454]
[1756057994330,0.40821,4900.5,4900.2,0.5856]
[1756057994534,2.0809,4900.4,4900.3,0.5856]
[1756057995124,1.14216,4900.0,4899.9,2.0454]
[1756057995433,0.5474,4899.7,4899.5,1.4598]
[1756057995629,1.5335,4899.6,4899.5,1.4598]
[1756057996033,0.4083,4899.5,4899.2,0.5856]
[1756057996233,1.5335,4899.4,4899.3,2.0454]
[1756057996537,2.0809,4899.4,4899.3,2.0454]
[1756057997028,2.0809,4899.4,4899.3,1.3136]
[1756057997229,0.40832,4899.3,4899.0,1.72193]
[1756057997532,2.0809,4899.1,4899.0,2.45373]
[1756057997733,2.0809,4899.1,4899.0,2.0454]
[1756057998232,2.0809,4899.1,4898.5,1.72197]
[1756057998636,2.0809,4898.8,4898.7,1.3136]
[1756057998831,2.0809,4899.1,4898.1,2.0454]
[1756057999133,2.0809,4899.1,4898.8,0.40835]
[1756057999332,0.5474,4899.1,4898.9,1.3136]
[1756057999636,0.40832,4899.3,4898.9,0.5856]
[1756057999829,0.40833,4899.2,4899.0,0.5856]
[1756058000029,2.0809,4899.1,4899.0,0.5856]
[1756058000425,0.40833,4899.1,4898.7,0.40836]
[1756058000629,0.40833,4899.1,4898.7,2.45376]
[1756058000833,0.40833,4899.1,4898.7,0.40836]
[1756058001036,0.40832,4899.3,4898.9,1.13634]
[1756058001238,3.4889,4899.1,4899.0,2.1739]
[1756058001434,3.4889,4899.1,4899.0,3.4046]
[1756058001638,1.9554,4899.6,4899.5,0.8565]
[1756058001839,1.9554,4899.6,4899.5,2.6728]
[1756058002135,3.4889,4899.6,4899.5,2.6728]
[1756058002331,3.4889,4899.6,4899.5,1.9448]
[1756058003331,3.4889,4899.2,4899.1,0.4812]
[1756058003936,3.4889,4899.2,4899.1,0.8565]
[1756058004130,2.2076,4898.9,4898.8,3.81295]
[1756058004538,1.408,4898.9,4898.8,3.81295]
[1756058004736,1.408,4898.9,4898.8,3.4046]
[1756058004936,2.9415,4898.9,4898.8,3.4046]
[1756058005131,1.408,4898.9,4898.8,3.4046]
[1756058005335,1.408,4899.4,4899.3,1.3592]
[1756058005633,1.81633,4899.1,4899.0,2.0872]
[1756058005839,3.4889,4899.1,4899.0,2.0872]
[1756058006041,3.4889,4899.1,4899.0,3.4046]
[1756058006537,2.56648,4898.6,4898.5,1.4421]
[1756058006738,2.56643,4899.1,4899.0,0.8565]
[1756058007042,3.89723,4899.1,4899.0,1.9448]
[1756058007232,3.89723,4899.1,4899.0,2.6728]
[1756058007432,3.89723,4899.1,4899.0,3.4046]
[1756058007836,3.4889,4899.1,4899.0,1.9448]
[1756058008034,1.408,4899.1,4899.0,3.81294]
[1756058008238,0.9333,4899.4,4899.3,0.878]
[1756058008440,1.408,4899.4,4899.3,3.4046]
[1756058009037,2.9415,4899.4,4899.3,3.4046]
[1756058009837,1.0059,4900.1,4900.0,3.4046]
[1756058010042,1.94172,4900.5,4900.4,1.3592]
[1756058010043,2.9415,4900.5,4900.4,1.3592]
[1756058010236,3.4889,4900.5,4900.4,3.4046]
[1756058010432,1.347,4901.0,4900.5,0.40821]
[1756058010631,3.4889,4900.7,4900.5,0.40821]
[1756058010830,3.4889,4900.4,4900.3,0.4812]
[1756058011236,1.408,4900.0,4899.7,2.60816875]
[1756058011546,0.7996,4901.0,4900.6,0.4082]
[1756058011843,1.5335,4900.9,4900.8,2.0454]
[1756058012144,2.0809,4900.9,4900.8,2.0454]
[1756058012442,2.0809,4900.9,4900.8,0.5856]
[1756058012636,2.0809,4900.9,4900.8,1.3136]
[1756058012837,1.5335,4900.9,4900.8,2.0454]
[1756058013238,0.5474,4901.3,4901.1,0.40816]
[1756058013434,0.5474,4901.3,4900.8,2.0454]
[1756058013435,0.7339,4902.1,4901.9,0.40809]
[1756058013639,1.5335,4902.1,4901.9,0.40809]
[1756058013836,1.5335,4902.1,4902.0,2.0454]
[1756058014039,2.0809,4902.3,4902.2,1.3136]
[1756058014345,2.0809,4902.3,4902.2,2.0454]
[1756058014532,0.5474,4902.7,4902.2,2.45347]
[1756058014737,2.0809,4902.6,4902.4,2.0454]
[1756058015044,2.0809,4902.5,4902.4,1.3136]
[1756058015342,0.5474,4902.5,4902.4,2.0454]
[1756058015838,2.0809,4902.5,4902.4,0.5856]
[1756058016538,2.0809,4902.4,4902.3,1.3174]
[1756058016739,2.0809,4902.4,4902.3,2.0454]
[1756058017138,1.5335,4902.4,4902.3,2.0454]
[1756058017441,0.40803,4902.7,4902.5,1.474]
[1756058017442,0.5914,4902.7,4902.5,1.474]
[1756058017641,2.0493,4902.6,4902.5,1.474]
[1756058018032,2.0493,4902.6,4902.5,2.0411]
[1756058018942,3.4333,4902.6,4902.5,2.8736]
[1756058019144,3.4333,4902.6,4902.5,3.3592]
[1756058019439,1.667,4903.1,4903.0,1.3181]
[1756058019634,1.384,4903.1,4903.0,3.3592]
[1756058019831,3.4333,4903.1,4903.0,3.3592]
[1756058021238,2.8419,4903.1,4903.0,3.3592]
[1756058021440,1.384,4903.5,4903.4,0.8459]
[1756058021645,1.384,4903.5,4903.4,3.3592]
[1756058021646,2.8419,4903.5,4903.4,3.3592]
[1756058021843,0.9949,4903.5,4903.4,3.3592]
[1756058022039,3.4333,4903.5,4903.4,2.6315]
[1756058022239,3.4333,4903.5,4903.4,1.8852]
[1756058023140,3.4333,4903.5,4903.4,3.3592]
[1756058023540,2.8419,4903.5,4903.4,3.3592]
[1756058023743,3.4333,4903.5,4903.4,3.3592]
[1756058023945,1.7604,4903.5,4903.4,3.3592]
[1756058024148,2.8419,4903.5,4903.4,3.3592]
[1756058024347,3.4333,4903.5,4903.4,3.3592]
[1756058024646,3.4333,4903.5,4903.4,2.6315]
[1756058025049,3.4333,4903.5,4903.4,1.8852]
[1756058025346,3.4333,4903.5,4903.4,0.8325]
[1756058026947,3.4333,4903.5,4902.6,0.5671]
[1756058026948,0.8716,4902.7,4902.6,0.5671]
[1756058027139,0.40804,4902.6,4902.3,0.40806]
[1756058027342,3.4333,4902.4,4902.3,0.8325]
[1756058027538,0.4825,4902.1,4902.0,0.5671]
[1756058027743,1.384,4901.6,4901.5,0.88033]
[1756058027942,3.4333,4901.6,4901.5,1.80773]
[1756058028348,3.4333,4901.6,4901.5,1.3996]
[1756058028744,0.40813,4901.5,4901.1,0.40816]
[1756058029049,0.40816,4901.2,4900.5,0.5671]
[1756058029251,0.7655,4901.0,4900.5,0.97531]
[1756058029551,0.6924,4900.8,4900.7,0.5671]
[1756058029850,0.6924,4900.8,4900.7,0.5238]
[1756058030252,0.6924,4900.8,4900.7,1.0909]
[1756058031054,0.6924,4900.8,4900.7,1.8186]
[1756058031345,0.6924,4900.8,4900.7,3.1367]
[1756058031851,1.4579,4900.8,4900.7,3.1367]
[1756058032446,2.8419,4900.8,4900.7,2.409]
[1756058032647,3.4333,4900.8,4900.7,2.409]
[1756058032952,3.84149,4900.8,4900.7,0.8325]
[1756058033251,3.4333,4900.4,4900.3,1.8852]
[1756058033851,0.5914,4900.3,4900.0,0.5671]
[1756058034057,2.8419,4900.1,4900.0,2.409]
[1756058035354,2.4528,4900.1,4900.0,3.1367]
[1756058035754,1.2048,4900.1,4900.0,3.1367]
[1756058036456,3.4333,4900.1,4900.0,2.409]
[1756058036650,0.8716,4899.7,4899.6,1.9368]
[1756058036947,0.8716,4899.7,4899.6,3.1367]
[1756058036948,2.8419,4899.7,4899.6,3.1367]
[1756058037554,2.8419,4899.7,4899.6,2.409]
[1756058037749,3.4333,4899.7,4899.6,1.8852]
[1756058037949,0.6924,4899.5,4899.2,0.40832]
[1756058038153,3.4333,4899.5,4899.4,2.409]
[1756058038456,3.4333,4899.5,4899.4,1.8852]
[1756058038652,1.384,4899.1,4899.0,30.36443]
[1756058038851,3.4333,4899.1,4899.0,30.88823]
[1756058039155,3.4333,4899.1,4899.0,29.9561]
[1756058040151,3.4333,4899.1,4899.0,30.4799]
[1756058040451,0.5914,4899.6,4899.0,3.1367]
[1756058040660,0.5914,4900.0,4899.5,3.1367]
[1756058040948,3.4333,4900.0,4899.9,1.3181]
[1756058041154,1.384,4900.0,4899.5,0.7277]
[1756058041349,0.3891,4899.7,4899.6,1.3996]
[1756058041552,1.9754,4899.6,4899.5,1.3996]
[1756058041751,1.9754,4899.6,4899.5,1.8852]
[1756058041945,1.9754,4899.6,4899.5,0.3603]
[1756058042249,0.6924,4899.3,4899.2,3.54502]
[1756058043757,1.4579,4899.3,4899.2,3.54502]
[1756058044257,3.4333,4899.3,4899.2,0.88052]
[1756058044450,3.4333,4899.3,4899.2,22.5602]
[1756058044649,1.384,4899.3,4899.0,22.088]
[1756058044849,3.4333,4899.2,4899.1,1.3996]
[1756058045454,3.4333,4899.2,4899.1,0.8325]
[1756058045760,1.384,4899.2,4899.0,0.40833]
[1756058045946,3.4333,4898.9,4898.8,22.079]
[1756058046151,3.4333,4898.7,4898.6,0.40837]
[1756058046351,3.4333,4898.7,4898.6,2.29357]
[1756058046658,1.5939,4898.7,4898.6,3.54507]
[1756058046853,2.3345,4898.7,4898.6,3.54507]
[1756058047054,0.744,4899.3,4899.2,2.94422]
[1756058047259,1.6103,4899.3,4899.2,3.52872]
[1756058047561,3.4496,4898.6,4898.5,24.87677]
[1756058047753,3.4496,4898.6,4898.4,0.40838]
[1756058047959,3.4496,4898.6,4897.6,1.02115]
[1756058047960,1.3791,4898.3,4898.1,0.40841]
[1756058048155,1.3791,4898.3,4898.2,0.371]
[1756058048458,1.3791,4898.3,4897.7,0.5069]
[1756058048459,1.3791,4898.0,4897.9,0.9555]
[1756058048648,3.4496,4898.0,4897.9,0.9555]
[1756058049054,3.4496,4898.0,4896.5,1.0914]
[1756058049055,0.8939,4896.8,4896.5,1.0914]
[1756058049247,0.8939,4896.8,4896.4,1.83213819]
[1756058049248,2.0705,4897.1,4896.4,0.5845]
[1756058049555,1.4846,4896.8,4896.7,0.40852]
[1756058049856,0.744,4896.8,4896.7,0.91542]
[1756058050057,1.02093,4898.7,4895.1,1.42358819]
[1756058050058,0.40849,4897.2,4896.5,0.40854]
[1756058050354,1.3265,4897.1,4896.3,0.5845]
[1756058050558,2.0705,4896.9,4896.7,0.99302]
[1756058050857,2.0705,4896.8,4896.7,0.99302]
[1756058051054,1.4846,4896.8,4896.7,1.49992]
[1756058051251,0.744,4896.7,4896.2,0.91547]
[1756058051456,2.0705,4896.5,4896.3,22.43956]
[1756058051658,0.4085,4897.1,4896.3,0.99306]
[1756058051659,2.0705,4896.4,4896.3,0.99306]
[1756058051952,2.0705,4897.8,4896.1,0.5845]
[1756058052152,0.40845,4897.7,4896.1,1.3005]
[1756058052358,2.0705,4897.7,4895.9,0.5845]
[1756058052655,1.3265,4897.6,4896.1,1.0914]
[1756058052860,2.0705,4897.4,4896.6,0.5845]
[1756058053055,0.744,4897.3,4896.6,0.716]
[1756058053268,1.3265,4897.2,4896.7,0.5845]
[1756058053562,0.0204,4898.3,4895.8,0.0204]
[1756058053563,0.40846,4897.6,4896.9,0.40851]
[1756058053760,0.744,4897.1,4897.0,1.4999]
[1756058053961,0.744,4897.4,4897.3,0.40848]
[1756058054153,1.4846,4897.4,4897.3,0.40848]
[1756058054352,1.4846,4897.4,4896.5,22.017]
[1756058054353,1.3265,4897.3,4896.8,0.40851]
[1756058054557,2.0705,4897.8,4897.2,0.40848]
[1756058054752,0.7406,4897.7,4897.2,0.40848]
[1756058054953,1.3299,4897.6,4897.2,0.99298]
[1756058055154,1.0413,4898.8,4897.3,0.40848]
[1756058055361,0.40842,4898.1,4897.3,0.40848]
[1756058055660,2.0705,4898.0,4897.4,0.40846]
[1756058055858,2.0705,4898.6,4897.6,0.40845]
[1756058056053,0.4084,4898.3,4897.2,1.0914]
[1756058056254,2.0705,4898.1,4897.5,0.40846]
[1756058056454,2.0705,4898.0,4897.8,0.40843]
[1756058056655,2.0705,4897.9,4897.8,0.99293]
[1756058057056,2.0705,4897.9,4897.8,1.49983]
[1756058057360,2.0705,4898.6,4897.3,0.40848]